fUST/lending_fUST_20240528
["ID","MTS","AMOUNT","RATE_DAILY","PERIOD"]
[328118265,1716891046525,-155.33566275,0.00019075,2]
[328118266,1716891046535,-11620.77763734,0.00019076,2]
[328118267,1716891046546,-529.53500157,0.00019076,2]
[328118268,1716891046558,-286.04727348,0.00019078,2]
[328118269,1716891046568,-455.052708,0.00019078,2]
[328118270,1716891046579,-455.052708,0.00019078,2]
[328118271,1716891046590,-455.052708,0.00019078,2]
[328118272,1716891046601,-455.052708,0.00019078,2]
[328118273,1716891046612,-455.052708,0.00019078,2]
[328118274,1716891046624,-455.05270393,0.00019078,2]
[328118275,1716891046635,-392.074662,0.00019078,2]
[328118276,1716891046645,-392.074662,0.00019078,2]
[328118277,1716891046655,-392.074662,0.00019078,2]
[328118278,1716891046666,-392.074662,0.00019078,2]
[328118279,1716891046677,-392.074662,0.00019078,2]
[328118280,1716891046688,-392.07467,0.00019078,2]
[328118281,1716891046698,-205.312742,0.00019078,2]
[328118282,1716891046713,-205.312742,0.00019078,2]
[328118283,1716891046723,-205.312742,0.00019078,2]
[328118284,1716891046733,-205.312742,0.00019078,2]
[328118285,1716891046744,-205.312742,0.00019078,2]
[328118286,1716891046755,-205.312742,0.00019078,2]
[328118287,1716891046765,-290.84818853,0.00019175,2]
[328118288,1716891046775,-160.29398886,0.00019176,2]
[328118289,1716891046785,-59460.83956525,0.00019176,2]
[328118290,1716891046798,-5614.27391924,0.00019176,2]
[328118291,1716891046808,-74801.95897188,0.00019176,2]
[328118292,1716891046818,-164.71763311,0.00019176,2]
[328118293,1716891046828,-225.09954874,0.00019176,2]
[328118294,1716891046838,-1874.29056679,0.00019177,2]
[328118295,1716891046848,-10124.29326278,0.00019178,2]
[328118296,1716891046858,-15286.17991816,0.00019178,2]
[328118297,1716891046871,-500.0,0.00019178,2]
[328118298,1716891046881,-15286.17991816,0.00019178,2]
[328118299,1716891046891,-15286.17991816,0.00019178,2]
[328118300,1716891046902,-15286.17991816,0.00019178,2]
[328118301,1716891046912,-15286.17991816,0.00019178,2]
[328118302,1716891046922,-15286.17991816,0.00019178,2]
[328118303,1716891046932,-15286.17991816,0.00019178,2]
[328118304,1716891046942,-15286.17991816,0.00019178,2]
[328118305,1716891046952,-15286.17991816,0.00019178,2]
[328118306,1716891046961,-15286.17991816,0.00019178,2]
[328118307,1716891046971,-15286.17991816,0.00019178,2]
[328118308,1716891046981,-15286.17991816,0.00019178,2]
[328118309,1716891046992,-15286.17991816,0.00019178,2]
[328118310,1716891047002,-15286.17991816,0.00019178,2]
[328118311,1716891047012,-15286.17991816,0.00019178,2]
[328118312,1716891047022,-15286.17991816,0.00019178,2]
[328118313,1716891047031,-569.77629756,0.00019178,2]
[328118314,1716891047042,-569.77629756,0.00019178,2]
[328118315,1716891047052,-569.77629756,0.00019178,2]
[328118316,1716891047062,-569.77629756,0.00019178,2]
[328118317,1716891047072,-569.77629756,0.00019178,2]
[328118318,1716891047081,-569.77629756,0.00019178,2]
[328118319,1716891047091,-569.77629756,0.00019178,2]
[328118320,1716891047100,-569.77629756,0.00019178,2]
[328118321,1716891047110,-569.77629756,0.00019178,2]
[328118322,1716891047122,-569.77629756,0.00019178,2]
[328118323,1716891047131,-569.77629756,0.00019178,2]
[328118324,1716891047141,-569.77629756,0.00019178,2]
[328118325,1716891047150,-569.77629756,0.00019178,2]
[328118326,1716891047160,-569.77629756,0.00019178,2]
[328118327,1716891047170,-569.77629756,0.00019178,2]
[328118328,1716891047180,-569.77629756,0.00019178,2]
[328118329,1716891047190,-569.77629756,0.00019178,2]
[328118330,1716891047200,-569.77629756,0.00019178,2]
[328118331,1716891047209,-569.77629756,0.00019178,2]
[328118332,1716891047219,-569.77629756,0.00019178,2]
[328118333,1716891047229,-569.77629756,0.00019178,2]
[328118334,1716891047239,-569.77629756,0.00019178,2]
[328118335,1716891047248,-569.77629756,0.00019178,2]
[328118336,1716891047257,-569.77629756,0.00019178,2]
[328118337,1716891047267,-15286.17991813,0.00019178,2]
[328118338,1716891047277,-590.12545102,0.00019178,2]
[328118339,1716891047287,-590.12545102,0.00019178,2]
[328118340,1716891047297,-453.67547595,0.00019178,2]
[328118341,1716891047307,-500.0,0.00019178,2]
[328118342,1716891047316,-500.0,0.00019178,2]
[328118343,1716891047326,-500.0,0.00019178,2]
[328118344,1716891047336,-500.0,0.00019178,2]
[328118345,1716891047345,-194.53982163,0.00019178,2]
[328118346,1716891047355,-1175.4525726,0.00019178,2]
[328118347,1716891047366,-1175.4525726,0.00019178,2]
[328118348,1716891047376,-1175.4525726,0.00019178,2]
[328118349,1716891047385,-1175.4525726,0.00019178,2]
[328118350,1716891047395,-1175.4525726,0.00019178,2]
[328118351,1716891047405,-1175.4525726,0.00019178,2]
[328118352,1716891047414,-1175.4525726,0.00019178,2]
[328118353,1716891047424,-1175.4525726,0.00019178,2]
[328118354,1716891047433,-1175.4525726,0.00019178,2]
[328118355,1716891047442,-1175.4525726,0.00019178,2]
[328118356,1716891047452,-1175.4525726,0.00019178,2]
[328118357,1716891047461,-1175.4525726,0.00019178,2]
[328118358,1716891047470,-1175.4525726,0.00019178,2]
[328118359,1716891047479,-1175.4525726,0.00019178,2]
[328118360,1716891047489,-1175.4525726,0.00019178,2]
[328118361,1716891047498,-1175.4525726,0.00019178,2]
[328118362,1716891047507,-1175.4525726,0.00019178,2]
[328118363,1716891047516,-1175.4525726,0.00019178,2]
[328118364,1716891047525,-1175.4525726,0.00019178,2]
[328118365,1716891047534,-514.5,0.00019178,2]
[328118366,1716891047543,-1175.4525726,0.00019178,2]
[328118367,1716891047552,-1175.4525726,0.00019178,2]
[328118368,1716891047561,-1175.4525726,0.00019178,2]
[328118369,1716891047570,-1175.4525726,0.00019178,2]
[328118370,1716891047579,-1175.4525726,0.00019178,2]
[328118371,1716891047588,-1175.4525726,0.00019178,2]
[328118372,1716891047597,-1175.4525726,0.00019178,2]
[328118373,1716891047607,-1175.4525726,0.00019178,2]
[328118374,1716891047617,-1175.4525726,0.00019178,2]
[328118375,1716891047626,-1175.4525726,0.00019178,2]
[328118376,1716891047636,-1149.00488973,0.00019178,2]
[328118377,1716891047645,-1149.00488973,0.00019178,2]
[328118378,1716891047654,-1149.00488973,0.00019178,2]
[328118379,1716891047663,-1149.00488973,0.00019178,2]
[328118380,1716891047672,-1149.00488973,0.00019178,2]
[328118381,1716891047682,-1149.00488973,0.00019178,2]
[328118382,1716891047691,-1149.00488973,0.00019178,2]
[328118383,1716891047700,-500.0,0.00019178,2]
[328118384,1716891047710,-500.0,0.00019178,2]
[328118385,1716891047724,-415.52055631,0.00019178,2]
[328118386,1716891047733,-158.36194649,0.00019178,2]
[328118387,1716891047742,-500.0,0.00019178,2]
[328118388,1716891047751,-623.72149792,0.00019178,2]
[328118389,1716891047761,-500.0,0.00019178,2]
[328118390,1716891047771,-277.8944721,0.00019178,2]
[328118391,1716891047780,-4877.9359572,0.00019178,2]
[328118392,1716891047791,-381.87030485,0.00019178,2]
[328118393,1716891047800,-500.0,0.00019178,2]
[328118394,1716891047810,-403.07874275,0.00019178,2]
[328118395,1716891047819,-553.2477219,0.00019178,2]
[328118396,1716891047829,-178.08023842,0.00019178,2]
[328118397,1716891047838,-500.51903578,0.00019178,2]
[328118398,1716891047847,-213.47196927,0.00019178,2]
[328118399,1716891047856,-357.84933238,0.00019178,2]
[328118400,1716891047867,-461.62235247,0.00019178,2]
[328118401,1716891047877,-533.89197753,0.00019178,2]
[328118402,1716891047886,-450.22934267,0.00019178,2]
[328118403,1716891047896,-500.0,0.00019178,2]
[328118404,1716891047906,-354.83470614,0.00019178,2]
[328118405,1716891047915,-500.0,0.00019178,2]
[328118406,1716891047924,-500.0,0.00019178,2]
[328118407,1716891047934,-500.0,0.00019178,2]
[328118408,1716891047943,-548.0,0.00019178,2]
[328118409,1716891047952,-490.0,0.00019178,2]
[328118410,1716891047962,-426.72831863,0.00019178,2]
[328118411,1716891047971,-490.0,0.00019178,2]
[328118412,1716891047980,-182.88356512,0.00019178,2]
[328118413,1716891047990,-3000.0,0.00019178,2]
[328118414,1716891047999,-3000.0,0.00019178,2]
[328118415,1716891048009,-1719.65675883,0.00019178,2]
[328118416,1716891048019,-176.581164,0.00019178,2]
[328118417,1716891048028,-174.394296,0.00019178,2]
[328118418,1716891048038,-663.689491,0.00019178,2]
[328118419,1716891048047,-663.689491,0.00019178,2]
[328118420,1716891048056,-663.689491,0.00019178,2]
[328118421,1716891048066,-663.689491,0.00019178,2]
[328118422,1716891048075,-663.689491,0.00019178,2]
[328118423,1716891048085,-663.689491,0.00019178,2]
[328118424,1716891048094,-663.689491,0.00019178,2]
[328118425,1716891048103,-663.689491,0.00019178,2]
[328118426,1716891048114,-663.689491,0.00019178,2]
[328118427,1716891048123,-663.689491,0.00019178,2]
[328118428,1716891048132,-663.689491,0.00019178,2]
[328118430,1716891048142,-663.689491,0.00019178,2]
[328118431,1716891048151,-663.689491,0.00019178,2]
[328118432,1716891048160,-663.689491,0.00019178,2]
[328118433,1716891048169,-663.689491,0.00019178,2]
[328118434,1716891048178,-663.689491,0.00019178,2]
[328118435,1716891048187,-663.689491,0.00019178,2]
[328118436,1716891048197,-663.689491,0.00019178,2]
[328118437,1716891048206,-663.689491,0.00019178,2]
[328118438,1716891048215,-663.689496,0.00019178,2]
[328118439,1716891048224,-159.0188586,0.00019178,2]
[328118440,1716891048234,-503.1,0.00019463,2]
[328118441,1716891048243,-591.0,0.000196,2]
[328118442,1716891048253,-542.24251016,0.0001979,2]
[328118443,1716891048262,-280.71103705,0.00019791,2]
[328118444,1716891048272,-994.77076108,0.00019792,2]
[328118445,1716891048282,-774.8818988,0.00019792,2]
[328118446,1716891048292,-2055.38952583,0.00019891,2]
[328118447,1716891048301,-614.15980497,0.00019891,2]
[328118448,1716891048310,-479.50100152,0.00019891,2]
[328118449,1716891048320,-239.79198288,0.00019891,2]
[328118450,1716891048329,-319.52187314,0.00019891,2]
[328118451,1716891048338,-302.07372888,0.00019892,2]
[328118452,1716891048347,-642.15807754,0.00019892,2]
[328118453,1716891048357,-620.00000336,0.00019916,2]
[328118454,1716891048367,-155.09842705,0.00019992,2]
[328118455,1716891048377,-374.01648635,0.00019994,2]
[328118456,1716891048386,-316.39320639,0.00019994,2]
[328118457,1716891048395,-237.71403977,0.00019995,2]
[328118458,1716891048405,-155.38403318,0.00019995,2]
[328118459,1716891048415,-1645.31884095,0.00019995,2]
[328118460,1716891048424,-160.76028493,0.00019996,2]
[328118461,1716891048433,-418.98703288,0.00019996,2]
[328118462,1716891048442,-20902.03298369,0.0002,2]
[328118463,1716891048452,-154.90705577,0.0002,2]
[328118464,1716891048462,-400.0,0.0002,2]
[328118465,1716891048471,-499.15286035,0.0002,2]
[328118466,1716891048481,-157.68754001,0.0002,2]
[328118467,1716891048490,-286.69085308,0.0002,2]
[328118468,1716891048500,-246.94188735,0.0002,2]
[328118469,1716891048509,-155.03501168,0.0002,2]
[328118470,1716891048519,-172.92297915,0.0002,2]
[328118471,1716891048527,-155.00700145,0.0002,2]
[328118472,1716891048538,-157.0479131,0.0002,2]
[328118473,1716891048547,-1352.23991412,0.0002,2]
[328118474,1716891048556,-7927.89737298,0.0002,5]
[328118475,1716891048576,-3003.14182548,0.0002,5]
[328118476,1716891048585,-1775.77896195,0.0002,2]
[328118477,1716891048884,-21993.7066771,0.0002,2]
[328118478,1716891048893,-2535.82804148,0.0002,2]
[328118479,1716891048905,-415.11121662,0.0002,2]
[328118480,1716891069283,266.61015013,0.00019074,7]
[328118481,1716891114215,273.37336231,9.9e-05,2]
[328118482,1716891122869,239.66802659,9.9e-05,2]
[328118483,1716891143763,285.42307397,9.999e-05,2]
[328118484,1716891162370,179.16957129,9.999e-05,2]
[328118486,1716891396048,777.58879204,0.00014305,2]
[328118488,1716891480787,2804.35209941,0.00015,2]
[328118489,1716891481936,2682.19473008,9.999e-05,2]
[328118490,1716891494006,359.90877621,0.00013472,2]
[328118492,1716891611773,357.06,0.00010959,2]
[328118493,1716891681593,154.95351395,9.999e-05,2]
[328118501,1716892058271,24900.0,0.00014866,2]
[328118509,1716892162351,-250.0,0.00015104,2]
[328118510,1716892162376,-679.24007237,0.00015779,2]
[328118513,1716892202503,7365.50892982,0.00014868,2]
[328118514,1716892202534,62411.22143658,0.00014868,2]
[328118515,1716892203421,257.04416207,9.9e-05,2]
[328118516,1716892216778,2117.10388927,9.999e-05,2]
[328118587,1716892235077,521.97323765,9.999e-05,2]
[328118600,1716892238401,-922.0747966,0.00015058,2]
[328118601,1716892238411,-101.62123126,0.00015851,2]
[328118615,1716892242426,-521.87992461,0.0001585,2]
[328118616,1716892242435,-90.24324243,0.00015851,2]
[328118617,1716892242445,-5720.06218736,0.00015852,2]
[328118618,1716892242574,-506.53710531,0.00015852,2]
[328118760,1716892244459,-869.94591213,0.00015852,2]
[328118762,1716892244594,-1206.500005,0.00015852,2]
[328118764,1716892244610,-610.0,0.00015852,2]
[328118785,1716892246575,-1358.74820893,0.00015852,2]
[328118786,1716892249326,273.37336231,9.9e-05,2]
[328118787,1716892253543,1279.52397529,9.999e-05,2]
[328118788,1716892257264,273.37336231,9.9e-05,2]
[328118789,1716892265733,273.37336231,9.9e-05,2]
[328118797,1716892291371,1098.46383784,0.00015,2]
[328118798,1716892297900,943.92433277,0.00015,2]
[328118799,1716892315450,8359.30305888,0.00018,7]
[328118800,1716892328598,417.22956751,0.00015,2]
[328118801,1716892329266,224.75841585,9.9e-05,2]
[328118802,1716892341254,224.75841585,9.9e-05,2]
[328118803,1716892348547,239.8838298,0.00015,2]
[328118804,1716892361220,225.39462798,9.9e-05,2]
[328118805,1716892411556,371.74918885,9.999e-05,2]
[328118806,1716892493771,1173.92176905,0.00014949,2]
[328118807,1716892580356,210.73317046,0.00014048,2]
[328118808,1716892580380,10214.02818394,0.00014048,2]
[328118811,1716892635484,163.96667753,0.00014939,2]
[328118813,1716892684966,1027.18154798,0.00014937,2]
[328118815,1716892741430,943.92433277,0.00015,2]
[328118817,1716892804738,2082.8235334,0.00014035,2]
[328118818,1716892820224,490.19032534,0.0003,120]
[328118819,1716892849052,2010.95485999,0.00028,120]
[328118820,1716892876746,898.78385443,0.00014936,2]
[328118821,1716892968480,154.92253873,0.00014936,2]
[328118822,1716892973624,1279.52397529,9.999e-05,2]
[328118823,1716892982482,231.15018088,0.00014936,2]
[328118824,1716893029829,163.96667751,0.0001494,2]
[328118825,1716893067802,786.43587267,0.0001492,2]
[328118826,1716893192152,-246.55753604,0.00015011,2]
[328118828,1716893226122,-10521.89740744,0.0001501,2]
[328118829,1716893226144,-9324.68292514,0.00015011,2]
[328118830,1716893226164,-1902.24785379,0.00015013,2]
[328118831,1716893226184,-321.85619654,0.00015021,2]
[328118832,1716893226204,-261.34373625,0.00015036,2]
[328118833,1716893226225,-155.07982479,0.00015036,2]
[328118834,1716893226245,-261.39779314,0.00015037,2]
[328118835,1716893226265,-18894.66917925,0.00015038,2]
[328118836,1716893258179,688.13138856,0.00014957,2]
[328118841,1716893365101,-1500.08643659,0.00015037,2]
[328118924,1716893440321,-997.51259947,0.00015037,2]
[328118938,1716893442389,-685.8,0.00015037,2]
[328118951,1716893443917,-1314.01474026,0.00015037,2]
[328118952,1716893444659,-855.0,0.00015037,2]
[328118960,1716893446822,-154.92253873,0.00015037,2]
[328118961,1716893446835,-3741.15649222,0.00015037,2]
[328118962,1716893487410,410.99614894,9.999e-05,2]
[328118963,1716893495824,154.93802479,9.999e-05,2]
[328118964,1716893503118,179.16957129,9.999e-05,2]
[328118965,1716893508654,281.88629717,9.999e-05,2]
[328118966,1716893518606,285.42307397,9.999e-05,2]
[328118967,1716893530370,231.10719336,9.999e-05,2]
[328118968,1716893534949,154.93802479,9.999e-05,2]
[328118969,1716893776886,400.006792,0.00014495,2]
[328118970,1716893808874,163.96667751,0.00014934,2]
[328118971,1716893926973,7860.6421153,0.00014195,2]
[328118972,1716893929492,1902.24785379,9.999e-05,2]
[328118973,1716893948757,168.0622798,0.00014106,2]
[328118974,1716893950723,1279.52397529,9.999e-05,2]
[328118975,1716894158697,4229.06661595,0.00014774,2]
[328118976,1716894195943,163.96667751,0.0001492,2]
[328118977,1716894204622,24900.0,0.00014024,2]
[328118978,1716894256514,200.003396,0.00014015,2]
[328118985,1716894378771,1279.52397529,9.999e-05,2]
[328118988,1716894402139,-163.96810649,0.00015004,2]
[328118991,1716894449684,9571.24046118,0.00015,2]
[328118993,1716894465426,42019.71697614,0.00015,2]
[328118995,1716894477226,59466.99845659,0.00015,2]
[328118996,1716894485625,10521.89740744,0.00015,2]
[328118997,1716894505630,6525.77248083,0.00015,2]
[328119003,1716894562116,602.11496499,0.00014935,2]
[328119007,1716894603688,42019.71697614,0.00015,2]
[328119027,1716894632841,-1432.81105298,0.00015001,2]
[328119070,1716894639745,-2599.540004,0.00015001,2]
[328119072,1716894639758,-344.88846712,0.00015001,2]
[328119118,1716894642368,-6695.56707614,0.00015001,2]
[328119120,1716894642378,-5521.53634145,0.00015001,2]
[328119122,1716894642388,-321.34148738,0.00015004,2]
[328119124,1716894642396,-950.09535933,0.00015032,2]
[328119126,1716894642406,-155.07982479,0.00015032,2]
[328119128,1716894642415,-261.34373625,0.00015033,2]
[328119129,1716894642424,-261.39779315,0.00015033,2]
[328119130,1716894642435,-237.09261297,0.00015034,2]
[328119131,1716894642443,-310.43514456,0.00015034,2]
[328119132,1716894642454,-280.18180308,0.00015034,2]
[328119133,1716894642463,-285.19888499,0.00015034,2]
[328119135,1716894642472,-313.61986655,0.00015034,2]
[328119137,1716894642481,-155.35912045,0.00015034,2]
[328119139,1716894642491,-218.32468865,0.00015035,2]
[328119141,1716894642500,-17806.36145936,0.00015035,2]
[328119142,1716894642509,-259.2207898,0.00015057,2]
[328119144,1716894642518,-4227.33365889,0.00015126,2]
[328119146,1716894642527,-190.173234,0.00015846,2]
[328119147,1716894642537,-1008.78871088,0.00015847,2]
[328119148,1716894642546,-318.88921626,0.00015847,2]
[328119149,1716894642556,-155.15953574,0.00015847,2]
[328119150,1716894642565,-3066.2016721,0.00015847,2]
[328119151,1716894642575,-178.99439023,0.00015847,2]
[328119152,1716894642588,-164.28466186,0.00015847,2]
[328119153,1716894642597,-158.67086264,0.00015847,2]
[328119154,1716894642606,-2219.69458842,0.00015847,2]
[328119155,1716894642615,-694.14748627,0.00015847,2]
[328119156,1716894642624,-270.18744518,0.00015847,2]
[328119157,1716894642633,-438.92610371,0.00015849,2]
[328119158,1716894642642,-155.3266312,0.00015879,2]
[328119159,1716894642650,-274.92390662,0.00017892,2]
[328119160,1716894642660,-551.32951369,0.00017893,2]
[328119161,1716894642669,-248.55243125,0.00017895,2]
[328119162,1716894642678,-10466.10637903,0.00017898,2]
[328119163,1716894642687,-1782.90454913,0.00017963,2]
[328119164,1716894642696,-519.48465186,0.00017963,2]
[328119165,1716894642705,-2601.13455208,0.00017964,2]
[328119166,1716894642715,-16423.69619467,0.00017964,2]
[328119167,1716894642724,-23183.8473557,0.00017965,2]
[328119168,1716894642736,-3906.9,0.00017965,2]
[328119169,1716894642748,-33335.89076569,0.00017965,2]
[328119197,1716894643932,-4613.4198587,0.00017965,2]
[328119198,1716894643942,-896.7707273,0.00018,2]
[328119199,1716894643952,-602.11496496,0.0001833,2]
[328119200,1716894643964,-151.0,0.00018468,3]
[328119201,1716894643976,-151.0,0.00018468,2]
[328119202,1716894643985,-452.8,0.00018468,3]
[328119203,1716894643995,-452.8,0.00018468,2]
[328119204,1716894644006,-150.0,0.0001887,2]
[328119205,1716894644015,-150.0,0.0001887,2]
[328119206,1716894644024,-497.0,0.0001887,2]
[328119207,1716894644034,-150.0,0.0001887,2]
[328119208,1716894644044,-620.00000017,0.00018873,2]
[328119209,1716894644056,-675.62476778,0.00018896,2]
[328119210,1716894644065,-586.38876747,0.000189,2]
[328119228,1716894644622,-412.45554936,0.000189,2]
[328119230,1716894644640,-784.76159017,0.000189,2]
[328119231,1716894644650,-2000.0,0.00018958,2]
[328119232,1716894644660,-151.0,0.00018978,2]
[328119233,1716894644669,-151.0,0.00018978,2]
[328119234,1716894644679,-14793.48609413,0.00018978,2]
[328119235,1716894644711,-518.72082035,0.00018978,2]
[328119238,1716894646818,-6798.27299087,0.00018978,2]
[328119248,1716894812239,371.74918885,9.999e-05,2]
[328119249,1716894881500,273.37336231,9.9e-05,2]
[328119253,1716895357962,1279.52397529,9.999e-05,2]
[328119296,1716895832314,-190.173234,0.00016499,2]
[328119299,1716895832324,-274.92390662,0.000165,2]
[328119302,1716895832338,-65.58397407,0.00017664,2]
[328119396,1716895838485,-134.41942193,0.00017664,2]
[328119397,1716895838495,-198.53920979,0.00017767,2]
[328119443,1716895843180,-1053.17328151,0.00017767,2]
[328119446,1716895843191,-151.0,0.00018375,3]
[328119450,1716895843201,-151.0,0.00018375,2]
[328119454,1716895843212,-82.36302485,0.00018375,3]
[328119460,1716895843226,-68.63697515,0.00018375,3]
[328119463,1716895843236,-158.7496236,0.00018666,2]
[328119467,1716895843247,-155.1028394,0.00018666,2]
[328119470,1716895843257,-153.0,0.00018666,2]
[328119473,1716895843268,-153.0,0.00018666,2]
[328119475,1716895843278,-153.0,0.00018666,2]
[328119478,1716895843289,-150.0,0.0001885,2]
[328119481,1716895843299,-497.0,0.0001885,2]
[328119483,1716895843309,-1326.55578778,0.000189,2]
[328119485,1716895843320,-961.76431124,0.00018976,2]
[328119487,1716895843332,-2602.89973032,0.00018977,2]
[328119489,1716895843345,-6704.69177999,0.00018977,2]
[328119491,1716895843358,-6103.31723009,0.00018977,2]
[328119493,1716895843368,-258.1926785,0.00019,2]
[328119495,1716895843385,-162.7360072,0.00019,2]
[328119497,1716895843395,-5054.27994618,0.00019058,2]
[328119499,1716895843405,-343.75482274,0.00019073,2]
[328119501,1716895843415,-543.25904659,0.00019073,2]
[328119503,1716895843426,-208.68378917,0.00019073,2]
[328119505,1716895843436,-758.49487541,0.00019073,2]
[328119507,1716895843445,-256.90782409,0.00019073,2]
[328119509,1716895843455,-456.01618426,0.00019073,2]
[328119511,1716895843464,-523.24502154,0.00019073,2]
[328119513,1716895843474,-719.71356439,0.00019073,2]
[328119515,1716895843484,-655.93534613,0.00019074,2]
[328119517,1716895843494,-242.6464469,0.00019075,2]
[328119519,1716895843504,-770.21573565,0.00019075,2]
[328119521,1716895843513,-2116.65624076,0.00019076,2]
[328119523,1716895843523,-863.02731039,0.00019077,2]
[328119525,1716895843532,-151.0,0.00019113,2]
[328119527,1716895843542,-500.0,0.00019178,2]
[328119529,1716895843552,-500.0,0.00019178,2]
[328119531,1716895843562,-358.11556648,0.00019178,2]
[328119533,1716895843572,-500.0,0.00019178,2]
[328119535,1716895843583,-500.0,0.00019178,2]
[328119537,1716895843592,-432.44983989,0.00019178,2]
[328119539,1716895843602,-500.0,0.00019178,2]
[328119541,1716895843612,-590.01989494,0.00019178,2]
[328119543,1716895843624,-500.0,0.00019178,2]
[328119545,1716895843635,-500.0,0.00019178,2]
[328119547,1716895843645,-500.0,0.00019178,2]
[328119550,1716895843655,-500.0,0.00019178,2]
[328119552,1716895843664,-500.0,0.00019178,2]
[328119555,1716895843674,-500.0,0.00019178,2]
[328119558,1716895843684,-500.0,0.00019178,2]
[328119561,1716895843694,-500.0,0.00019178,2]
[328119564,1716895843703,-500.0,0.00019178,2]
[328119566,1716895843713,-500.0,0.00019178,2]
[328119569,1716895843723,-500.0,0.00019178,2]
[328119572,1716895843732,-500.0,0.00019178,2]
[328119575,1716895843743,-583.9939735,0.00019178,2]
[328119578,1716895843753,-314.56996486,0.00019178,2]
[328119580,1716895843762,-500.0,0.00019178,2]
[328119582,1716895843772,-261.53841911,0.00019178,2]
[328119584,1716895843782,-500.0,0.00019178,2]
[328119586,1716895843792,-230.31100164,0.00019178,2]
[328119587,1716895843802,-500.0,0.00019178,2]
[328119588,1716895843812,-500.0,0.00019178,2]
[328119589,1716895843822,-500.0,0.00019178,2]
[328119591,1716895843831,-500.0,0.00019178,2]
[328119593,1716895843842,-500.0,0.00019178,2]
[328119595,1716895843852,-591.31010101,0.00019178,2]
[328119597,1716895843862,-500.0,0.00019178,2]
[328119599,1716895843873,-500.0,0.00019178,2]
[328119601,1716895843883,-500.0,0.00019178,2]
[328119603,1716895843893,-500.0,0.00019178,2]
[328119605,1716895843903,-500.0,0.00019178,2]
[328119607,1716895843912,-500.0,0.00019178,2]
[328119609,1716895843922,-500.0,0.00019178,2]
[328119611,1716895843933,-239.61411247,0.00019178,2]
[328119613,1716895843944,-500.0,0.00019178,2]
[328119615,1716895843955,-500.0,0.00019178,2]
[328119617,1716895843965,-500.0,0.00019178,2]
[328119619,1716895843975,-441.44565991,0.00019178,2]
[328119621,1716895843985,-500.0,0.00019178,2]
[328119623,1716895843995,-500.0,0.00019178,2]
[328119625,1716895844004,-377.94371907,0.00019178,2]
[328119626,1716895844014,-500.0,0.00019178,2]
[328119628,1716895844024,-500.0,0.00019178,2]
[328119630,1716895844034,-500.0,0.00019178,2]
[328119631,1716895844044,-500.0,0.00019178,2]
[328119632,1716895844054,-500.0,0.00019178,2]
[328119633,1716895844064,-500.0,0.00019178,2]
[328119634,1716895844073,-500.0,0.00019178,2]
[328119635,1716895844084,-500.0,0.00019178,2]
[328119636,1716895844094,-500.0,0.00019178,2]
[328119637,1716895844103,-500.0,0.00019178,2]
[328119638,1716895844114,-500.0,0.00019178,2]
[328119639,1716895844126,-500.0,0.00019178,2]
[328119640,1716895844135,-500.0,0.00019178,2]
[328119641,1716895844145,-500.0,0.00019178,2]
[328119642,1716895844155,-580.0,0.00019178,2]
[328119643,1716895844164,-500.0,0.00019178,2]
[328119644,1716895844175,-500.0,0.00019178,2]
[328119645,1716895844184,-500.0,0.00019178,2]
[328119646,1716895844194,-2840.76917652,0.00019178,2]
[328119647,1716895844204,-2840.76917652,0.00019178,2]
[328119648,1716895844214,-2840.76917652,0.00019178,2]
[328119649,1716895844225,-2840.76917652,0.00019178,2]
[328119650,1716895844235,-2840.76917652,0.00019178,2]
[328119651,1716895844246,-2840.76917652,0.00019178,2]
[328119652,1716895844255,-2840.76917652,0.00019178,2]
[328119653,1716895844267,-2840.76917652,0.00019178,2]
[328119654,1716895844277,-2840.76917652,0.00019178,2]
[328119655,1716895844286,-2840.76917652,0.00019178,2]
[328119656,1716895844296,-2840.76917652,0.00019178,2]
[328119657,1716895844306,-2840.76917652,0.00019178,2]
[328119658,1716895844316,-2840.76917652,0.00019178,2]